Cogmind - Beta 16 --- EXPLORER MODE // 2025.12.05 @ 11:22:38 Player: K.K.Y. Result: Destroyed by as-57830 with Assembled Rifle Performance ------------- Evolutions (0) 0 Regions Visited (2) 400 Robots Destroyed (43) 215 Value Destroyed (586) 586 Prototype IDs (1) 20 Alien Tech Used (0) 0 Bonus (0) 0 TOTAL SCORE: 1221 Bonus ------- None Cogmind --------- Core Integrity 0/250 Matter 259/300 Energy 100/100 System Corruption 3% Temperature Cool (0) Movement Core (50) Location -10/Mines Parts ------- > --- POWER (1) -------- (None) > --- PROPULSION (2) --- (None) > --- UTILITY (3) ------ Terrain Scan Processor > --- WEAPON (2) ------- Heavy Mace > --- INVENTORY (5) ---- Machine Analyzer Machine Analyzer Hacking Suite Mining Laser Peak State ------------ > --- POWER ------------ Nuclear Core > --- PROPULSION ------- Light Treads Airjet > --- UTILITY ---------- Improved Terrain Scanner Terrain Scan Processor Terrain Scan Processor > --- WEAPON ----------- Improved EM Shotgun High-powered Shotgun > --- INVENTORY -------- Machine Analyzer Machine Analyzer Hacking Suite Mining Laser Heavy Mace [Rating: 21] Favorites ----------- Power Ion Engine Engine Ion Engine Power Core Nuclear Core Propulsion Wheel Treads Light Treads Wheel Wheel Hover Unit Airjet Utility Terrain Scan Processor Device Improved Terrain Scanner Processor Terrain Scan Processor Weapon Improved EM Shotgun Energy Gun Improved EM Shotgun Ballistic Gun Light Assault Rifle Special Weapon Mining Laser Impact Weapon Heavy Mace Build | -11 -10 -10 ------- Run | Yrd Mat Min Slots Evolved 1 | . 1 . Power . | . . . Propulsion . | . . . Utility 1 | . 1 . Weapon . | . . . Parts Attached 28 | 5 18 5 Power 3 | 1 1 1 Engine 2 | 1 1 . Core 1 | . . 1 Reactor . | . . . Propulsion 13 | 2 9 2 Treads 3 | 2 . 1 Leg . | . . . Wheel 9 | . 9 . Hover 1 | . . 1 Flight . | . . . Utility 3 | . 3 . Device 1 | . 1 . Storage . | . . . Processor 2 | . 2 . Hackware . | . . . Protection . | . . . Artifact . | . . . Weapon 9 | 2 5 2 Energy Gun 5 | 2 3 . Energy Cannon . | . . . Ballistic Gun 2 | . 1 1 Ballistic Cannon . | . . . Launcher . | . . . Special Weapon 1 | . 1 . Impact Weapon 1 | . . 1 Slashing Weapon . | . . . Piercing Weapon . | . . . Special Melee Weapon . | . . . Unidentified Prototypes 1 | . 1 . Parts Lost 10 | . 3 7 Power 1 | . . 1 Propulsion 3 | . 1 2 Utility 2 | . . 2 Weapon 4 | . 2 2 Highest Loss Streak 6 | . 2 6 To Critical Strikes . | . . . Average Backups 4 | 2 4 4 Power . | . . . Propulsion 2 | . 3 . Utility . | . . 2 Weapon 1 | 1 1 1 Tool/Special . | . . . Unused Backups 9 | . 4 5 Power . | . . . Propulsion 2 | . . 2 Utility 3 | . . 3 Weapon 4 | . 4 . Tool/Special . | . . . Average Slot Usage (%) 94 | . 94 97 Engine 10 | . 12 1 Core 1 | . . 10 Treads 3 | . 1 10 Wheel 19 | . 23 3 Hover 1 | . . 8 Device 11 | . 11 12 Processor 21 | . 20 24 Energy Gun 18 | . 20 11 Ballistic Gun 5 | . 4 11 Peak Build Rating 21 | 5 16 21 Average Rating 14 | 4 14 19 On Entrance 6 | . 5 14 Avg Prop Armor Cover (%) 5 | . . 5 Naked Turns . | . . . Heaviest Build 14 | 9 12 14 Greatest Support 40 | 40 40 40 Greatest Overweight (x) 1 | . . 1 Average Overweight (x) . | . . . Largest Inventory Capacity 5 | 5 5 5 Average Capacity 5 | 5 5 5 Most Carried 5 | 5 5 5 Average Carried 4 | 2 4 4 Final Capacity 5 | 5 5 5 Final Carried 5 | 3 5 4 Class Distribution -------------------- 62% | Scavenger-Mutant 37% | Hacker-Mutant Dominant Class ---------------- Scavenger-Mutant | -10/Materials Hacker-Mutant | -10/Mines Resources | -11 -10 -10 ----------- Run | Yrd Mat Min Matter Collected 479 | 153 282 44 Remotely . | . . . Salvage Created 1538 | 101 1332 105 Parts 102 | 6 96 . Haulers Intercepted 2 | . 2 . Recyclers Shooed . | . . . Parts Field Recycled . | . . . Retrieved Matter . | . . . Parts Self-Destructed . | . . . Prevented . | . . . Parts Restored . | . . . Kills | -11 -10 -10 ------- Run | Yrd Mat Min Combat Hostiles Destroyed 23 | . 13 10 Melee 1 | . . 1 Guns 19 | . 11 8 AOE 1 | . 1 . Classes Destroyed 9 | 2 6 1 Worker 12 | . 12 . Builder 7 | . 7 . Tunneler 3 | 1 2 . Hauler 2 | . 2 . Recycler 2 | 1 1 . Watcher 3 | . 3 . Swarmer 2 | . 2 . Grunt 11 | . 11 . Assembled 9 | . . 9 Best Kill Streak 16 | 2 16 10 Combat Bots Only 10 | . 4 10 Max Kills in Single Turn 2 | 1 2 1 Gunslinging . | . . . Exploded 1 | . 1 . Melee 1 | . . 1 Uniques/NPCs Destroyed 1 | . . 1 YI-UF0 (-10/Mines) Combat | -11 -10 -10 -------- Run | Yrd Mat Min Hostile Shots Fired 143 | . 53 90 Missed 35 | . 12 23 Hits 108 | . 41 67 Melee 9 | . . 9 Projectile 99 | . 41 58 AOE 6 | . . 6 Critical Strikes 2 | . 1 1 Damage Taken 1075 | . 388 687 Core 256 | . 57 199 Absorbed by Shields . | . . . Ignored by Resistances 663 | . 240 423 Core Remaining (%) 100 | 100 . . Volleys Fired 78 | 3 60 15 Largest 2 | 2 2 2 Hottest 145 | 90 145 70 Shots Fired 153 | 6 118 29 Gun 152 | 6 117 29 Cannon . | . . . Launcher . | . . . Special 1 | . 1 . Kinetic 15 | . . 15 Thermal 9 | 3 6 . Explosive . | . . . Electromagnetic 129 | 3 112 14 Robot Hit Streak 31 | 2 31 23 Robot Miss Streak 3 | 1 1 3 Penetration Max . | . . . Secondary Targets 5 | . 1 4 Max Gunslinging Chain 1 | . 1 1 Shots Hit Robots 109 | 3 74 32 Core Hits 75 | 2 55 18 Critical Kills . | . . . Critical Parts Destroyed 1 | . . 1 Critical Strikes 4 | . 3 1 Burn 2 | . 2 . Corrupt 1 | . 1 . Smash 1 | . . 1 Melee Attacks 4 | . . 4 Impact 4 | . . 4 Slashing . | . . . Piercing . | . . . Sneak Attacks . | . . . Combat Hostiles . | . . . Follow-up Attacks . | . . . Damage Inflicted 2336 | 40 1573 723 Guns 1827 | 40 1321 466 Cannons . | . . . Explosions 252 | . 252 . Melee 257 | . . 257 Ramming . | . . . Kinetic 295 | . . 295 Thermal 314 | 12 302 . Explosive . | . . . Electromagnetic 1470 | 28 1271 171 Impact 257 | . . 257 Slashing . | . . . Piercing . | . . . Highest Corruption 3 | . . 3 Average Corruption 2 | . . 2 Corruption Purged . | . . . Corruption Blocked . | . . . Overload Shots . | . . . Overflow Damage 102 | . 2 100 Projectiles . | . . . Explosions 2 | . 2 . Melee 100 | . . 100 Knockbacks 1 | . . 1 Impact 1 | . . 1 Kinetic . | . . . Secondary . | . . . Self-Inflicted Damage 86 | . 86 . Shots 5 | . 5 . Rammed . | . . . Targets Rammed . | . . . Kicked . | . . . Crushed . | . . . Highest Temperature 297 | 60 297 130 Average Temperature 89 | 26 99 55 Received Heat Transfer 399 | . 279 120 Effects 2 | . 2 . Energy Bleed 2 | . 2 . Siege Activations . | . . . Martial Activations . | . . . Shielding Activations . | . . . Robots Disrupted . | . . . Combat Hostiles . | . . . Robots Corrupted 2 | . 1 1 Combat Hostiles 2 | . 1 1 Parts Fried 5 | . 5 . Impact Corruptions 3 | . . 3 Robots Melted . | . . . Combat Hostiles . | . . . Parts Melted . | . . . Heat Transferred 683 | 37 646 . Parts Sabotaged . | . . . Parts Stolen . | . . . Parts Stripped . | . . . Power Chain Reactions 6 | . 6 . Alert | -11 -10 -10 ------- Run | Yrd Mat Min Maximum Alert Level . | . . . Low Security (%) 100 | 100 100 100 Level 1 . | . . . Level 2 . | . . . Level 3 . | . . . Level 4 . | . . . Level 5 . | . . . High Security . | . . . Max Security . | . . . Peak Influence 167 | 5 167 . Initial . | . . . Average 12 | 2 16 . Influence Increases 493 | 10 483 . Destroy 0b10 Robot/C 260 | . 260 . Destroy 0b10 Robot/NC 145 | 10 135 . Destroy Leader 60 | . 60 . Successful Hack 6 | . 6 . Disable Machine 8 | . 8 . Destroy Structure 14 | . 14 . Influence Decreases 493 | 10 483 . Time Decay 473 | 10 463 . Lost Part 20 | . 20 . Squads Dispatched 1 | . 1 . Investigation 1 | . 1 . Extermination . | . . . Reinforcement . | . . . Assault . | . . . Garrison . | . . . Intercept . | . . . Searches Triggered . | . . . Construction Impeded . | . . . Haulers Reinforced . | . . . Active Scanning Responses . | . . . Cargo Convoy Interrupts . | . . . Stealth | -11 -10 -10 --------- Run | Yrd Mat Min Distress Signals 3 | . 2 1 Communications Jammed . | . . . Distress Signals . | . . . Times Spotted 35 | . 19 16 Peak Tracking Total 8 | . 5 8 Tactical Retreats . | . . . Traps | -11 -10 -10 ------- Run | Yrd Mat Min Traps Triggered 1 | . . 1 Indirectly . | . . . Trap Hack Attempts . | . . . Triggered . | . . . Disarmed . | . . . Reprogrammed . | . . . Reused . | . . . Traps Extracted . | . . . Installed . | . . . Triggered . | . . . Machines | -11 -10 -10 ---------- Run | Yrd Mat Min Machines Disabled 2 | . 2 . Max in Single Turn 1 | . 1 . Machines Repaired . | . . . Machines Dismantled . | . . . Machines Sabotaged . | . . . Overloaded Fab Kills . | . . . Hacking | -11 -10 -10 --------- Run | Yrd Mat Min Machines Accessed 10 | . 9 1 Terminals 7 | . 7 . Fabricators . | . . . Repair Stations . | . . . Recycling Units 2 | . 2 . Scanalyzers . | . . . Garrison Access . | . . . Total Hacks 20 | . 19 1 Successful 17 | . 16 1 Failed 3 | . 3 . Catastrophic . | . . . Database Lockouts . | . . . Manual 11 | . 11 . Terminals 15 | . 15 . Fabricators . | . . . Repair Stations . | . . . Recycling Units 4 | . 4 . Scanalyzers . | . . . Garrison Access . | . . . Terminal Hacks 6 | . 5 1 Robot Analysis 5 | . 5 . Open Door 1 | . . 1 Fabricator Hacks . | . . . Repair Station Hacks . | . . . Recycling Unit Hacks 2 | . 2 . Retrieve Components 2 | . 2 . Scanalyzer . | . . . Garrison Access Hacks . | . . . Unauthorized Hacks 9 | . 9 . Terminals 7 | . 7 . Botnet 7 | . 7 . Fabricators . | . . . Repair Stations . | . . . Recycling Units 2 | . 2 . Reject 2 | . 2 . Scanalyzers . | . . . Garrison Access . | . . . Data Cores Recovered . | . . . Used . | . . . Hacking Detections 6 | . 6 . Full Trace Events 2 | . 2 . Feedback Events . | . . . Feedback Blocked . | . . . Robot Schematics Acquired . | . . . Robots Built . | . . . Authchips . | . . . Time . | . . . Total Robot Build Rating . | . . . Part Schematics Acquired . | . . . Parts Built . | . . . Authchips . | . . . Time . | . . . Total Part Build Rating . | . . . Part Studies Acquired . | . . . Parts Repaired . | . . . Time . | . . . Parts Recycled . | . . . Recycled Matter . | . . . Retrieved Matter . | . . . Retrieved Components 10 | . 10 . Parts Scanalyzed . | . . . Part Schematics Acquired . | . . . Parts Damaged . | . . . Bothacking | -11 -10 -10 ------------ Run | Yrd Mat Min Used RIF Installer . | . . . Robots Hacked . | . . . Non-combat . | . . . Combat . | . . . Robot Hacks Applied . | . . . Relay Couplers Released . | . . . Fabnet Peak Effective % . | . . . Robots Rewired . | . . . Allies Hacked . | . . . Hacks Repelled . | . . . Allies | -11 -10 -10 -------- Run | Yrd Mat Min Total Allies . | . . . Largest Group . | . . . Highest-Rated Group . | . . . Highest-Rated Ally . | . . . Total Orders . | . . . Ally Attacks . | . . . Total Damage . | . . . Kills . | . . . Allies Corrupted . | . . . Allies Melted . | . . . Intel | -11 -10 -10 ------- Run | Yrd Mat Min Active Infowar (turns) 2568 | . 2094 474 Terrain 2568 | . 2094 474 Robot Analysis Total 5 | . 5 . Derelict Logs Recovered . | . . . Drone Launches . | . . . Drone Recoveries . | . . . Exploration | -11 -10 -10 ------------- Run | Yrd Mat Min Turns Passed 2758 | 75 2200 483 Spaces Moved 1426 | 44 1146 236 Core 20 | 14 . 6 Treads 276 | 30 61 185 Legs . | . . . Wheels 1130 | . 1085 45 Hover . | . . . Flight . | . . . Fastest Speed 50 | 50 80 50 Average Speed 95 | 125 84 142 Slowest Speed 160 | 160 160 160 Overloaded Moves . | . . . Propulsion Burnouts . | . . . Robots Hopped . | . . . Potential Cave-ins . | . . . Cave-ins Triggered . | . . . Exploration Rate (%) 50 | 4 99 47 Regions Visited 2 Branch Regions 1 Pre-discovered Areas . | . . . Known Exits Taken 2 | 1 1 . Unknown Exits Taken . | . . . Scrap Searched . | . . . Spaces Dug . | . . . Terrain Destroyed 15 | . 15 . Melee . | . . . Projectile . | . . . AOE 15 | . 15 . Terrain Rammed . | . . . Walls Destroyed . | . . . Machines Disabled . | . . . Actions | -11 -10 -10 --------- Run | Yrd Mat Min Total 2676 | 58 2268 350 Wait 1088 | . 1009 79 Move 1424 | 43 1145 236 Hop . | . . . Pick Up 27 | 7 16 4 Fast Attach 5 | 1 4 . Attach 11 | 4 6 1 Detach 2 | . 2 . Swap 14 | . 9 5 Drop 23 | . 17 6 Fire 78 | 3 60 15 Melee 4 | . . 4 Ram . | . . . Kick . | . . . Crush . | . . . Escape Stasis . | . . . Rewire . | . . . Trap . | . . . Miscellaneous . | . . . Route ------- -11/Scrapyard -10/Materials (discovered 5 exits: *Mat x3 / *Min / Sub) -10/Mines (discovered 1 exit: *Exi) History --------- Turn | Location | Event 5 | -11/Scrapyard | Identified exit to Materials 5 | -11/Scrapyard | Discovered exit to Materials (range 16) 76 | -11/Scrapyard | Entered Materials 76 | -10/Materials | Evolved 1 slot: Utility x1 263 | -10/Materials | Identified exit to Subcaves 263 | -10/Materials | Discovered exit to Subcaves (range 9) 300 | -10/Materials | Build established: Hacker-Mutant 440 | -10/Materials | Identified exit to Mines 440 | -10/Materials | Discovered exit to Mines (range 8) 520 | -10/Materials | Identified exit to Materials 520 | -10/Materials | Discovered exit to Materials (range 11) 671 | -10/Materials | Discovered exit to Materials (range 16) 789 | -10/Materials | Discovered exit to Materials (range 15) 920 | -10/Materials | Build established: Scavenger-Mutant 2276 | -10/Materials | Entered Mines 2297 | -10/Mines | Met a Derelict who couldn't figure out how to use a Trap Extractor 2538 | -10/Mines | Identified exit to Exiles 2538 | -10/Mines | Discovered exit to Exiles (range 10) 2548 | -10/Mines | Deemed a non-threat by the Exiles lab entrance 2616 | -10/Mines | Build established: Hacker-Mutant 2638 | -10/Mines | Assembled infested the area 2723 | -10/Mines | Core integrity fell below 50% 2749 | -10/Mines | Core integrity fell below 20% 2758 | -10/Mines | Destroyed YI-UF0 2759 | -10/Mines | Destroyed by as-57830 with Assembled Rifle Last Messages --------------- 02743_ Nuclear Core destroyed. 02744_ Acquired 11 matter. 02745_ Lgt. Treads destroyed. 02747_ The unstable cave ceiling collapses. 02749_ as-83123 suffers critical hit (Smash). 02749_ Destroyed Asb. Rifle. 02749_ Destroyed Asb. Hover Unit. 02749_ as-83123 system corrupted by crushing effect. 02749_ as-83123 destroyed. 02750_ Imp. Terrain Scanner destroyed. 02752_ Acquired 11 matter. 02755_ as-66349 shuts down. 02756_ The unstable cave ceiling collapses. 02757_ Destroyed Adv. Heat Sink. 02757_ YI-UF0 system corrupted by crushing effect. 02757_ YI-UF0 knocked back. 02758_ YI-UF0 system terminally corrupted. 02759_ K-01 Serf destroyed. Map ----- +----------------------------------------------------+ | ?????????????????????????????????????????? | | ?????????????????????????????????????????? | | ?????????????????????????????????????????? | | ?????????????????????????????????????????? | | ?????????????????????????????????????????? | | ?????????????????????????????????????????? | | ?????????????????????????????????????????? | | ?????????????????????????????????????????? | | ?????????????????????????????????????????? | | ?????????????????????????????????????????? | | ?????????????????????????????????????????? | | ??????????????????#??? ?##???????????????? | | ?????????????????# ? " ??##??????????????? | | ??????????????? ## ?######??#??????????? | | ?????????????????? ? ?????#?#????????????? | | ???????????###??#???? ??#????????#???????? | | ??????????????#??##? #####?#?#?#??#??????? | | ??????????#??######## #?######?#???????? | | ??????????#??#### # ######?#? ??????? | | ????????????###? # # # ##?##???????????? | | ???????#?###### # # # #####?# ???????? | | ?????????# ## ? # ## ### ??"?????? | | ????????## #### ???#???? | | ?????? ? # # # ## a ####? ??" ????? | | ??????? # ## # % ######? ??#???? | | ??????? # #####a a@ ##### ? ?????? | | ???? % aa #####?######???? | | ???? |% # # #% # #########????? | | ?????" ? #? ## # # ######?#????? | | ?????" ? # ## # # # #########???? | | ?????? ? ? # # %*### ## ###?#???? | | ????########## ## ## ?#?????? | | ####?###?######## # ## ? ?????? | | ?#?#?######?##### ## ? ? ????? | | ##?#######?##### %= ### ?????? | | #?#?#####?###### ####### ?????? | | #############?### ######## ??##? | | #####?######?#### ######### ?????? | | ################# ######?#? ?#???? | | ##?########### #######?#? #????# | | ??####?###### #########?##?#?# | | ##?######### ###??#?#?#?##? | | ####?#### ####??#???##? | | ##### ######????#??? | | #### ### ########??#??##??? | | ### ########## ###########?##?###? | | #### #######################?##?#???? | | ##### #####?###############?###??#???? | | #### #################???### ###?#?#? | | ### #########?########### ##???? | +----------------------------------------------------+ Best States ------------- Heat Dissipation 25 Energy Generation 14 Energy Capacity 250 Matter Stores 300 Matter Capacity 300 Sight Range 16 Terrain Scan Range 16 Terrain Scan Density 160 Resistance: KI 35 Resistance: TH 35 Resistance: EX 35 Resistance: EM 35 Resistance: I 35 Resistance: S 35 Resistance: P 35 Evasion (%) 50 Recoil Reduction 2 Offensive Hacking 20 Item Schematics ----------------- None Robot Schematics ------------------ None Fabricated ------------ Nothing Repaired ---------- Nothing Studied --------- None Alien Tech Used ----------------- None Achievements -------------- None Challenges ------------ None Game ------ Seed CombatDataScythe Manual? 0 Play Time 00:15:30 Cumulative 170.7 hours Start 2025.12.05 @ 11:04:59 End 2025.12.05 @ 11:22:38 Sessions 1 Manual Loads 0 Difficulty Explorer Special Mode None Game No. 233 Rogue 0 Adventurer 0 Explorer 233 Win Type - Total 0 Types 0/0/0/0/0/0/0/0/0/0 Lore% 70 Gallery% 67 Achievement% 52 Wizard Run 0 Options --------- Layout 1 ASCII 0 Keyboard 0 Movement Mouse Keybinds 0 Fullscreen 1 Font 24/Smallcaps Map View 50x35 Zoom Use 0% Tactical HUD 1 Map Filters NONE Filters NONE Steam 1 RUN: 3eeb0b0a-dd3d-442c-ae5f-1bb6118b1ecb